Cogmind - Beta 14 @@@ ROGUE MODE // 2025.04.27 @ 12:08:50 Player: Florist Result: Destroyed by S-27 Virus with Autogun Performance ------------- Evolutions (3) 1500 Regions Visited (8) 1600 Robots Destroyed (26) 130 Value Destroyed (985) 985 Prototype IDs (3) 60 Alien Tech Used (0) 0 Bonus (-10) -10 TOTAL SCORE: 4265 Bonus ------- Friendly Fire -10 Cogmind --------- Core Integrity 0/700 Matter 300/300 Energy 97/100 System Corruption 7% Temperature Cool (0) Movement Core (50) Location -7/Lower Caves Parts ------- > --- POWER (1) -------- (None) > --- PROPULSION (5) --- (None) > --- UTILITY (5) ------ Improved Targeting Computer > --- WEAPON (2) ------- (None) > --- INVENTORY (5) ---- (None) Peak State ------------ > --- POWER ------------ Heavy Ion Engine > --- PROPULSION ------- Cesium-ion Thruster Cesium-ion Thruster Cesium-ion Thruster Cesium-ion Thruster Improved VTOL Module > --- UTILITY ---------- Improved Sensor Array Signal Interpreter Targeting Computer Microactuators Propulsion Shielding > --- WEAPON ----------- Greatsword > --- INVENTORY -------- Cesium-ion Thruster Cesium-ion Thruster Improved Targeting Computer Melee Analysis Suite [Rating: 38] Favorites ----------- Power Light Deuterium Engine Engine Light Deuterium Engine Propulsion Cesium-ion Thruster Treads Medium Treads Leg Aluminum Leg Flight Unit Cesium-ion Thruster Utility Signal Interpreter Device Microactuators Storage Small Storage Unit Processor Signal Interpreter Protection Propulsion Shielding Weapon Light Assault Rifle Energy Gun Particle Gun Ballistic Gun Light Assault Rifle Special Weapon Plasma Flamer Impact Weapon Mace Slashing Weapon Greatsword Build | -11 -10 -10 -10 -9 -8 -7 -7 -7 ------- Run | Yrd Mat Min Exi Min Mat Fac Low Low Slots Evolved 6 | . . . . . 4 2 . . Power . | . . . . . . . . . Propulsion 3 | . . . . . 2 1 . . Utility 3 | . . . . . 2 1 . . Weapon . | . . . . . . . . . Parts Attached 52 | 6 8 6 . . 13 6 8 5 Power 4 | 1 . . . . 1 . 1 1 Engine 4 | 1 . . . . 1 . 1 1 Core . | . . . . . . . . . Reactor . | . . . . . . . . . Propulsion 22 | 2 3 4 . . 5 3 3 2 Treads 4 | . . . . . . . 2 2 Leg 5 | 2 1 1 . . . . 1 . Wheel . | . . . . . . . . . Hover . | . . . . . . . . . Flight 13 | . 2 3 . . 5 3 . . Utility 13 | 1 2 . . . 4 2 3 1 Device 4 | . . . . . 3 1 . . Storage 1 | 1 . . . . . . . . Processor 5 | . 1 . . . . 1 3 . Hackware . | . . . . . . . . . Protection 3 | . 1 . . . 1 . . 1 Artifact . | . . . . . . . . . Weapon 13 | 2 3 2 . . 3 1 1 1 Energy Gun 1 | . . . . . 1 . . . Energy Cannon . | . . . . . . . . . Ballistic Gun 7 | 2 3 1 . . 1 . . . Ballistic Cannon . | . . . . . . . . . Launcher . | . . . . . . . . . Special Weapon 2 | . . 1 . . 1 . . . Impact Weapon 1 | . . . . . . . 1 . Slashing Weapon 2 | . . . . . . 1 . 1 Piercing Weapon . | . . . . . . . . . Special Melee Weapon . | . . . . . . . . . Unidentified Prototypes 3 | . . . . . 3 . . . Corrupted Parts 1 | . . . . . . . 1 . System Corruption 3 | . . . . . . . 3 . Parts Lost 34 | . 1 3 . . 6 4 14 6 Power 3 | . 1 . . . . . 1 1 Propulsion 16 | . . 3 . . 2 2 7 2 Utility 10 | . . . . . 2 2 4 2 Weapon 5 | . . . . . 2 . 2 1 Highest Loss Streak 7 | . 1 2 . . 5 4 7 6 To Critical Strikes . | . . . . . . . . . Average Slot Usage (%) 64 | . 79 71 71 71 56 77 57 47 Engine 4 | . 6 . . . 2 7 5 5 Treads 2 | . . . . . . . 4 12 Leg 3 | . 17 3 . . . . . . Flight 15 | . 10 19 28 28 23 36 11 . Device 4 | . . . . . 4 9 8 . Storage 5 | . 14 14 14 14 4 . . . Processor 13 | . 2 14 14 14 9 14 20 15 Protection 2 | . . . . . 9 5 . 5 Ballistic Gun 8 | . 28 19 14 14 1 . . . Impact Weapon 1 | . . . . . . . 3 . Slashing Weapon 1 | . . . . . . 2 2 5 Peak Build Rating 38 | 6 7 11 6 6 22 38 35 20 Average Rating 15 | 5 5 6 6 6 13 28 23 17 On Entrance 10 | . 6 7 6 6 6 22 35 4 Naked Turns . | . . . . . . . . . Heaviest Build 17 | 10 10 8 7 7 10 17 16 13 Greatest Support 56 | 20 20 10 8 8 20 25 51 56 Greatest Overweight (x) 2 | . . 2 . . 1 . 1 . Average Overweight (x) . | . . . . . . . . . Largest Inventory Capacity 8 | 8 8 8 8 8 8 5 5 5 Average Capacity 6 | 7 8 8 8 8 6 5 5 5 Most Carried 8 | 5 8 8 7 7 7 5 4 4 Average Carried 3 | 2 5 7 7 7 3 4 1 . Final Capacity 8 | 8 8 8 8 8 5 5 5 5 Final Carried 8 | 3 8 7 7 7 5 3 3 . Class Distribution -------------------- 56% | Mutant 20% | Scavenger-Mutant 20% | Sprinter Dominant Class ---------------- Mutant | -10/Materials Mutant | -10/Mines Mutant | -10/Exiles Mutant | -9/Mines Sprinter | -8/Materials Sprinter | -7/Factory Scavenger-Mutant | -7/Lower Caves Mutant | -7/Lower Caves Resources | -11 -10 -10 -10 -9 -8 -7 -7 -7 ----------- Run | Yrd Mat Min Exi Min Mat Fac Low Low Matter Collected 892 | 206 104 193 . 11 158 50 122 48 Remotely . | . . . . . . . . . Salvage Created 1135 | . 255 207 . . 140 211 322 . Parts 57 | . 19 15 . . 3 9 11 . Haulers Intercepted . | . . . . . . . . . Recyclers Shooed . | . . . . . . . . . Parts Field Recycled . | . . . . . . . . . Retrieved Matter . | . . . . . . . . . Parts Self-Destructed 9 | . . . . . . . 9 . Prevented . | . . . . . . . . . Kills | -11 -10 -10 -10 -9 -8 -7 -7 -7 ------- Run | Yrd Mat Min Exi Min Mat Fac Low Low Combat Hostiles Destroyed 24 | . 5 7 . . 3 4 5 . Melee 7 | . . . . . . 4 3 . Guns 14 | . 5 6 . . 3 . . . Cannons 1 | . . 1 . . . . . . Classes Destroyed 6 | . 2 1 . . . 2 1 . Carrier 1 | . . . . . . . 1 . Watcher 1 | . 1 . . . . . . . Swarmer 4 | . . 3 . . . 1 . . Grunt 17 | . 5 4 . . 3 1 4 . Brawler 1 | . . . . . . 1 . . Duelist 2 | . . . . . . 1 1 . Best Kill Streak 4 | . 2 2 . . 3 4 2 . Combat Bots Only 4 | . 2 2 . . 3 4 2 . Max Kills in Single Turn 1 | . 1 1 . . 1 1 1 . Gunslinging . | . . . . . . . . . Exploded . | . . . . . . . . . Melee 1 | . . . . . . 1 1 . Uniques/NPCs Destroyed . | . . . . . . . . . Combat | -11 -10 -10 -10 -9 -8 -7 -7 -7 -------- Run | Yrd Mat Min Exi Min Mat Fac Low Low Hostile Shots Fired 296 | . 23 42 . . 67 12 96 56 Missed 96 | . 3 14 . . 24 4 30 21 Damage Taken 3385 | . 319 307 . . 813 255 1208 483 Core 1203 | . 72 59 . . 368 35 534 135 Absorbed by Shields . | . . . . . . . . . Redirected to Shielding 52 | . . . . . 18 34 . . Core Remaining (%) 60 | 100 . . . 47 33 . . . Volleys Fired 75 | . 25 25 . . 25 . . . Largest 2 | . 2 2 . . 1 . . . Hottest 100 | . 40 100 . . 100 . . . Shots Fired 105 | . 50 30 . . 25 . . . Gun 97 | . 50 25 . . 22 . . . Cannon . | . . . . . . . . . Launcher . | . . . . . . . . . Special 8 | . . 5 . . 3 . . . Kinetic 92 | . 50 25 . . 17 . . . Thermal 13 | . . 5 . . 8 . . . Explosive . | . . . . . . . . . Electromagnetic . | . . . . . . . . . Robot Hit Streak 19 | . 6 5 . . 19 . . . Robot Miss Streak 3 | . 2 3 . . 1 . . . Penetration Max . | . . . . . . . . . Secondary Targets 1 | . . 1 . . . . . . Max Gunslinging Chain 1 | . . 1 . . . . . . Shots Hit Robots 101 | . 32 16 . . 24 9 20 . Core Hits 50 | . 17 13 . . 8 6 6 . Critical Kills 1 | . . . . . 1 . . . Critical Parts Destroyed 2 | . . . . . . . 2 . Critical Strikes 6 | . . . . . 2 1 3 . Burn 1 | . . . . . 1 . . . Destroy 1 | . . . . . 1 . . . Smash 2 | . . . . . . . 2 . Sever 2 | . . . . . . 1 1 . Melee Attacks 41 | . . . . . . 12 29 . Impact 12 | . . . . . . . 12 . Slashing 29 | . . . . . . 12 17 . Piercing . | . . . . . . . . . Sneak Attacks 2 | . . . . . . . 2 . Combat Hostiles 1 | . . . . . . . 1 . Follow-up Attacks . | . . . . . . . . . Damage Inflicted 2198 | . 272 213 . . 380 396 937 . Guns 774 | . 272 160 . . 342 . . . Cannons . | . . . . . . . . . Explosions . | . . . . . . . . . Melee 1331 | . . . . . . 396 935 . Ramming 2 | . . . . . . . 2 . Kinetic 697 | . 272 160 . . 265 . . . Thermal 168 | . . 53 . . 115 . . . Explosive . | . . . . . . . . . Electromagnetic . | . . . . . . . . . Impact 340 | . . . . . . . 340 . Slashing 991 | . . . . . . 396 595 . Piercing . | . . . . . . . . . Highest Corruption 7 | . . . . . 1 4 7 7 Average Corruption 4 | . . . . . 1 4 4 7 Corruption Purged . | . . . . . . . . . Corruption Blocked . | . . . . . . . . . Effects 27 | . . . . . 1 1 18 7 Message Errors 5 | . . . . . . . 4 1 Matter Fused 9 | . . . . . . . 6 3 Heat Flow Errors 3 | . . . . . . 1 2 . Energy Discharges 5 | . . . . . 1 . 3 1 Data Loss (minor) 2 | . . . . . . . 2 . Data Loss (major) 3 | . . . . . . . 1 2 Overload Shots . | . . . . . . . . . Overflow Damage 218 | . . . . . . 19 199 . Projectiles . | . . . . . . . . . Explosions . | . . . . . . . . . Melee 218 | . . . . . . 19 199 . Knockbacks 4 | . . . . . . . 4 . Impact 4 | . . . . . . . 4 . Kinetic . | . . . . . . . . . Secondary . | . . . . . . . . . Self-Inflicted Damage 1 | . . . . . . . 1 . Shots . | . . . . . . . . . Rammed 1 | . . . . . . . 1 . Targets Rammed 1 | . . . . . . . 1 . Kicked . | . . . . . . . . . Crushed . | . . . . . . . . . Highest Temperature 159 | . 36 109 . . 38 112 159 . Average Temperature 16 | . 8 42 . . 16 11 11 . Received Heat Transfer 1203 | . 186 129 . . 270 9 585 24 Siege Activations . | . . . . . . . . . Robots Corrupted 1 | . . . . . . . 1 . Combat Hostiles 1 | . . . . . . . 1 . Parts Fried 1 | . . . . . . . 1 . Impact Corruptions 3 | . . . . . . . 3 . Robots Melted . | . . . . . . . . . Combat Hostiles . | . . . . . . . . . Parts Melted 1 | . . . . . . . 1 . Heat Transferred 819 | . . 320 . . 499 . . . Parts Sabotaged . | . . . . . . . . . Parts Stolen . | . . . . . . . . . Parts Stripped . | . . . . . . . . . Power Chain Reactions . | . . . . . . . . . Alert | -11 -10 -10 -10 -9 -8 -7 -7 -7 ------- Run | Yrd Mat Min Exi Min Mat Fac Low Low Peak Influence 360 | . 147 180 . . 360 303 . . Initial 163 | . . 5 . . . 163 . . Average 87 | . 68 83 . . 78 216 . . Maximum Alert Level 1 | . . . . . 1 1 . . Low Security (%) 91 | 100 100 100 . 100 89 56 . . Level 1 8 | . . . . . 10 43 . . Level 2 . | . . . . . . . . . Level 3 . | . . . . . . . . . Level 4 . | . . . . . . . . . Level 5 . | . . . . . . . . . High Security . | . . . . . . . . . Max Security . | . . . . . . . . . Squads Dispatched 3 | . . . . . 3 . . . Investigation . | . . . . . . . . . Extermination . | . . . . . . . . . Reinforcement 3 | . . . . . 3 . . . Assault . | . . . . . . . . . Garrison . | . . . . . . . . . Intercept . | . . . . . . . . . Searches Triggered . | . . . . . . . . . Construction Impeded . | . . . . . . . . . Haulers Reinforced . | . . . . . . . . . Active Scanning Responses . | . . . . . . . . . Cargo Convoy Interrupts . | . . . . . . . . . Stealth | -11 -10 -10 -10 -9 -8 -7 -7 -7 --------- Run | Yrd Mat Min Exi Min Mat Fac Low Low Distress Signals 4 | . . . . . 1 3 . . Communications Jammed . | . . . . . . . . . Distress Signals . | . . . . . . . . . Times Spotted 78 | . 10 9 . . 27 10 17 5 Peak Tracking Total 14 | . 2 3 . . 14 6 5 5 Tactical Retreats 14 | . . 1 . . 5 2 6 . Traps | -11 -10 -10 -10 -9 -8 -7 -7 -7 ------- Run | Yrd Mat Min Exi Min Mat Fac Low Low Traps Triggered 3 | . 1 . . . 1 1 . . Indirectly . | . . . . . . . . . Trap Hack Attempts . | . . . . . . . . . Triggered . | . . . . . . . . . Disarmed . | . . . . . . . . . Reprogrammed . | . . . . . . . . . Reused 1 | . . . . . . . 1 . Traps Extracted . | . . . . . . . . . Installed 2 | . . . . . . . 2 . Triggered 2 | . . . . . . . 2 . Machines | -11 -10 -10 -10 -9 -8 -7 -7 -7 ---------- Run | Yrd Mat Min Exi Min Mat Fac Low Low Machines Disabled . | . . . . . . . . . Max in Single Turn . | . . . . . . . . . Machines Repaired . | . . . . . . . . . Machines Dismantled . | . . . . . . . . . Machines Sabotaged . | . . . . . . . . . Overloaded Fab Kills . | . . . . . . . . . Hacking | -11 -10 -10 -10 -9 -8 -7 -7 -7 --------- Run | Yrd Mat Min Exi Min Mat Fac Low Low Machines Accessed 10 | . 4 . 4 . . 2 . . Terminals 3 | . 3 . . . . . . . Fabricators 1 | . . . . . . 1 . . Repair Stations . | . . . . . . . . . Recycling Units 2 | . 1 . . . . 1 . . Scanalyzers . | . . . . . . . . . Garrison Access . | . . . . . . . . . Total Hacks 13 | . 7 . 4 . . 2 . . Successful 9 | . 4 . 4 . . 1 . . Failed 4 | . 3 . . . . 1 . . Catastrophic 2 | . 1 . . . . 1 . . Database Lockouts . | . . . . . . . . . Manual 6 | . 5 . 1 . . . . . Terminals 5 | . 5 . . . . . . . Fabricators 1 | . . . . . . 1 . . Repair Stations . | . . . . . . . . . Recycling Units 3 | . 2 . . . . 1 . . Scanalyzers . | . . . . . . . . . Garrison Access . | . . . . . . . . . Terminal Hacks 4 | . . . 4 . . . . . Record 4 | . . . 4 . . . . . Fabricator Hacks . | . . . . . . . . . Repair Station Hacks . | . . . . . . . . . Recycling Unit Hacks 2 | . 1 . . . . 1 . . Retrieve Components 2 | . 1 . . . . 1 . . Scanalyzer . | . . . . . . . . . Garrison Access Hacks . | . . . . . . . . . Unauthorized Hacks 3 | . 3 . . . . . . . Terminals 3 | . 3 . . . . . . . Assimilate 1 | . 1 . . . . . . . Botnet 2 | . 2 . . . . . . . Fabricators . | . . . . . . . . . Repair Stations . | . . . . . . . . . Recycling Units . | . . . . . . . . . Scanalyzers . | . . . . . . . . . Garrison Access . | . . . . . . . . . Data Cores Recovered . | . . . . . . . . . Used . | . . . . . . . . . Hacking Detections 4 | . 3 . . . . 1 . . Full Trace Events . | . . . . . . . . . Feedback Events . | . . . . . . . . . Feedback Blocked . | . . . . . . . . . Robot Schematics Acquired . | . . . . . . . . . Robots Built . | . . . . . . . . . Authchips . | . . . . . . . . . Time . | . . . . . . . . . Total Robot Build Rating . | . . . . . . . . . Part Schematics Acquired . | . . . . . . . . . Parts Built . | . . . . . . . . . Authchips . | . . . . . . . . . Time . | . . . . . . . . . Total Part Build Rating . | . . . . . . . . . Parts Repaired . | . . . . . . . . . Time . | . . . . . . . . . Parts Recycled . | . . . . . . . . . Recycled Matter . | . . . . . . . . . Retrieved Matter . | . . . . . . . . . Retrieved Components 2 | . 2 . . . . . . . Parts Scanalyzed . | . . . . . . . . . Part Schematics Acquired . | . . . . . . . . . Parts Damaged . | . . . . . . . . . Bothacking | -11 -10 -10 -10 -9 -8 -7 -7 -7 ------------ Run | Yrd Mat Min Exi Min Mat Fac Low Low Used RIF Installer . | . . . . . . . . . Robots Hacked . | . . . . . . . . . Non-combat . | . . . . . . . . . Combat . | . . . . . . . . . Robot Hacks Applied . | . . . . . . . . . Relay Couplers Released . | . . . . . . . . . Fabnet Peak Effective % . | . . . . . . . . . Robots Rewired . | . . . . . . . . . Allies Hacked . | . . . . . . . . . Hacks Repelled . | . . . . . . . . . Allies | -11 -10 -10 -10 -9 -8 -7 -7 -7 -------- Run | Yrd Mat Min Exi Min Mat Fac Low Low Total Allies 1 | . 1 . . . . . . . Largest Group 1 | . 1 1 . . . . . . Highest-Rated Group 10 | . 10 10 . . . . . . Highest-Rated Ally 10 | . 10 10 . . . . . . Total Orders . | . . . . . . . . . Ally Attacks . | . . . . . . . . . Total Damage . | . . . . . . . . . Kills . | . . . . . . . . . Allies Corrupted . | . . . . . . . . . Allies Melted . | . . . . . . . . . Intel | -11 -10 -10 -10 -9 -8 -7 -7 -7 ------- Run | Yrd Mat Min Exi Min Mat Fac Low Low Robot Analysis Total . | . . . . . . . . . Derelict Logs Recovered 2 | . . 1 . . . . 1 . Drone Launches . | . . . . . . . . . Drone Recoveries . | . . . . . . . . . Exploration | -11 -10 -10 -10 -9 -8 -7 -7 -7 ------------- Run | Yrd Mat Min Exi Min Mat Fac Low Low Turns Passed 2637 | 145 427 281 192 19 280 203 849 241 Spaces Moved 3670 | 46 473 380 519 52 441 408 1174 177 Core 291 | 17 . 2 . . 33 . 193 46 Treads 380 | . . . . . . . 249 131 Legs 218 | 29 153 26 . . . . 10 . Wheels . | . . . . . . . . . Hover . | . . . . . . . . . Flight 2781 | . 320 352 519 52 408 408 722 . Fastest Speed 23 | 50 37 37 37 37 26 23 23 50 Average Speed 51 | 94 63 44 37 37 32 23 60 131 Slowest Speed 160 | 120 120 150 37 37 120 26 160 160 Overloaded Moves . | . . . . . . . . . Propulsion Burnouts . | . . . . . . . . . Robots Hopped 17 | . . 1 . . 15 1 . . Cave-ins Triggered . | . . . . . . . . . Exploration Rate (%) 48 | 6 81 57 90 14 46 12 96 33 Regions Visited 8 Branch Regions 5 Pre-discovered Areas 1 | . . 1 . . . . . . Known Exits Taken 7 | . 1 1 1 1 1 1 1 . Unknown Exits Taken 1 | 1 . . . . . . . . Scrap Searched 7 | . . 1 . 1 . . 4 1 Spaces Dug 1 | . . . . . . . 1 . Terrain Destroyed 1 | . . . . . . . 1 . Melee 1 | . . . . . . . 1 . Projectile . | . . . . . . . . . AOE . | . . . . . . . . . Terrain Rammed . | . . . . . . . . . Walls Destroyed . | . . . . . . . . . Machines Disabled . | . . . . . . . . . Actions | -11 -10 -10 -10 -9 -8 -7 -7 -7 --------- Run | Yrd Mat Min Exi Min Mat Fac Low Low Total 4245 | 147 563 461 518 51 544 499 1277 185 Wait 330 | 87 21 41 . . 62 67 51 1 Move 3630 | 45 472 377 518 51 412 405 1173 177 Hop 15 | . . 1 . . 13 1 . . Pick Up 67 | 9 21 6 . . 13 6 10 2 Fast Attach . | . . . . . . . . . Attach 47 | 6 5 5 . . 12 6 8 5 Detach 2 | . 1 . . . 1 . . . Swap 5 | . 3 1 . . 1 . . . Drop 30 | . 15 5 . . 5 2 3 . Fire 75 | . 25 25 . . 25 . . . Melee 41 | . . . . . . 12 29 . Ram 1 | . . . . . . . 1 . Kick . | . . . . . . . . . Crush . | . . . . . . . . . Escape Stasis . | . . . . . . . . . Rewire . | . . . . . . . . . Trap 2 | . . . . . . . 2 . Miscellaneous . | . . . . . . . . . Route ------- -11/Scrapyard -10/Materials (discovered 3 exits: *Mat x2 / *Min) -10/Mines (discovered 3 exits: *Mat x2 / *Exi) -10/Exiles -9/Mines -8/Materials -7/Factory -7/Lower Caves -7/Lower Caves History --------- Turn | Location | Event 11 | -11/Scrapyard | Discovered new exit (range 16) 146 | -11/Scrapyard | Entered Materials 315 | -10/Materials | Build established: Mutant 421 | -10/Materials | Discovered new exit (range 16) 455 | -10/Materials | Discovered new exit (range 15) 469 | -10/Materials | Discovered new exit (range 8) 568 | -10/Materials | Identified exit to Mines 573 | -10/Materials | Entered Mines 573 | -10/Mines | Accompanied by 1 ally 615 | -10/Mines | Discovered new exit (range 10) 619 | -10/Mines | Identified exit to Materials 666 | -10/Mines | A weapon hastily lodged in a ceiling crevice suddenly fell to the ground 684 | -10/Mines | Learned location of Storage (-9) 795 | -10/Mines | Core integrity fell below 50% 830 | -10/Mines | Discovered exit to Materials (range 9) 837 | -10/Mines | Received a Rocket Launcher from a helpful Derelict 852 | -10/Mines | Deemed a non-threat by the Exiles lab entrance 852 | -10/Mines | Discovered new exit (range 5) 853 | -10/Mines | Identified exit to Exiles 854 | -10/Mines | Entered Exiles 854 | -10/Exiles | Found Exiles lab abandoned 1043 | -10/Exiles | Discovered new exit (range 10) 1046 | -10/Exiles | Identified exit to Mines 1046 | -10/Exiles | Entered Mines 1058 | -9/Mines | Discovered new exit (range 9) 1061 | -9/Mines | Identified exit to Materials 1065 | -9/Mines | Entered Materials 1065 | -8/Materials | Evolved 4 slots: Propulsion x2, Utility x2 1230 | -8/Materials | Lost 5 parts (2n2u1w) 1319 | -8/Materials | Core integrity fell below 50% 1341 | -8/Materials | Discovered new exit (range 15) 1345 | -8/Materials | Identified exit to Factory 1345 | -8/Materials | Entered Factory 1345 | -7/Factory | Evolved 2 slots: Propulsion x1, Utility x1 1482 | -7/Factory | Discovered new exit (range 9) 1485 | -7/Factory | Identified exit to Lower Caves 1512 | -7/Factory | Build established: Sprinter 1548 | -7/Factory | Entered Lower Caves 1555 | -7/Lower Caves | Lost 4 parts (2n2u) 1623 | -7/Lower Caves | Discovered new exit (range 6) 1624 | -7/Lower Caves | Identified exit to Lower Caves 1852 | -7/Lower Caves | Lost 4 parts (2n1u1w) 2111 | -7/Lower Caves | Learned Factory stockpile data 2125 | -7/Lower Caves | Build established: Scavenger-Mutant 2271 | -7/Lower Caves | Core integrity fell below 50% 2305 | -7/Lower Caves | Lost 7 parts (1p2n3u1w) 2325 | -7/Lower Caves | Core integrity fell below 20% 2397 | -7/Lower Caves | Entered another Lower Caves area 2524 | -7/Lower Caves | Spotted B-75 Beast 2562 | -7/Lower Caves | Build established: Mutant 2638 | -7/Lower Caves | Destroyed by S-27 Virus with Autogun Last Messages --------------- Found Imp. Titanium Leg. Found Arm. Wheel. Found Lgt. Deuterium Engine. Found 53 Matter. Acquired Mak. Axe. Acquired 10 matter. Acquired Lgt. Deuterium Engine. V|AKLOEX5RNCW9VGIFNTJU IG>JB3I9N59G>J 6< System corrupted: Substantial component data lost. System corrupted: Matter fused (-9). System corrupted: Matter fused (-5). Acquired 4 matter. System corrupted: Matter fused (-9). Mak. Axe destroyed. Hrd. Light Armor Plating destroyed. Lgt. Deuterium Engine destroyed. Acquired 4 matter. System corrupted: Energy discharge (-30). Med. Treads destroyed. Signal Interpreter destroyed. Map ----- +----------------------------------------------------+ | ????????????????????????????? ????## #??###?? | | ?????????????????????????????# ???## #??????? | | ?????????????????????????????# #?## #??????? | | ??????????????????????######## ### ##??????? | | ??????????????????????# ## ##???????? | | ??????????????????????# ###????????? | | ???????????????????????????# ##??????????? | | ????????????????????###????# #???????????? | | ????????????????????? ???## #???????????? | | ????????????????????? ???## ##???#???????? | | ?????????????????????# ???# ###?? ##??????? | | ?????????????????????# ???# #??? #??????? | | ?????????????????????# ???# ### #??????? | | ?????????????????????# #??## #??????? | | ?????????????????????# ###" #???????? | | ?????????????????????# #?? | | ????????????????????## ### ! #? | | ?????????????????#### ssss#######??##########%* ?? | | ?????????????????# #?????????##???????????? | | ?????????????????# """" ##??### #???????????? | | ?????????????????# """" ## #????????????? | | ?????????????????# """" #??????????????????? | | ?????????????????# ####??????????????????? | | ?????????????????####### #?????????????????????? | | ???????????????????????## #?????????????????????? | | ????????????????????????#@ #?????????????????????? | | ???????????????????????# #?????????????????????? | | ??????????????????????# #?????????????????????? | | ??????????????????????# ##?????????????????????? | | ??????????????????????# ##??????????????????????? | | ??????????????????????# ????????????????????????? | | ??????????????????????###????????????????????????? | | ?????????????????????????????????????????????????? | | ?????????????????????????????????????????????????? | | ?????????????????????????????????????????????????? | | ?????????????????????????????????????????????????? | | ?????????????????????????????????????????????????? | | ?????????????????????????????????????????????????? | | ?????????????????????????????????????????????????? | | ?????????????????????????????????????????????????? | | ?????????????????????????????????????????????????? | | ?????????????????????????????????????????????????? | | ?????????????????????????????????????????????????? | | ?????????????????????????????????????????????????? | | ?????????????????????????????????????????????????? | | ?????????????????????????????????????????????????? | | ?????????????????????????????????????????????????? | | ?????????????????????????????????????????????????? | | ?????????????????????????????????????????????????? | | ?????????????????????????????????????????????????? | +----------------------------------------------------+ Best States ------------- Heat Dissipation 45 Energy Generation 14 Energy Capacity 280 Matter Stores 300 Matter Capacity 300 Sight Range 16 Robot Scan Range 15 Terrain Scan Density 10 Armor Coverage 150 Propulsion Shielding 33 Melee Speed Boost 20 Evasion (%) 65 Targeting Accuracy 6 Melee Accuracy 11 Recoil Reduction 2 Item Schematics ----------------- None Robot Schematics ------------------ None Fabricated ------------ Nothing Alien Tech Used ----------------- None Achievements -------------- None Challenges ------------ None Game ------ Seed TrackerModifiedBrace Manual? 0 Play Time 00:31:23 Cumulative 57.2 hours Start 2025.04.27 @ 11:36:15 End 2025.04.27 @ 12:08:50 Sessions 1 Manual Loads 0 Difficulty Rogue Special Mode None Game No. 70 Rogue 70 Adventurer 0 Explorer 0 Win Type - Total 0 Types 0/0/0/0/0/0/0/0/0 Lore% 14 Gallery% 42 Achievement% 37 Wizard Run 0 Options --------- Layout 1 ASCII 0 Keyboard 0 Movement Mouse Keybinds 0 Fullscreen 1 Font 32/SmallcapsGlow Map View 77x35 Zoom Use 0% Tactical HUD 0 Map Filters NONE Filters NONE Steam 1 RUN: 8926892e-9df4-459c-815f-7f7537c7dd23